Cogmind - Beta 14 @@@ ROGUE MODE // 2024.09.16 @ 10:55:15 Player: Zaros426 Result: Destroyed by Enhanced Grunt with Neutron Cannon Performance ------------- Evolutions (3) 1500 Regions Visited (10) 2000 Robots Destroyed (114) 570 Value Destroyed (5063) 5063 Prototype IDs (43) 860 Alien Tech Used (0) 0 Bonus (2141) 2141 TOTAL SCORE: 12134 Bonus ------- High Alert Combat Kills 766 Follower Combat Kills 270 Entered Garrisons 200 Used RIF Installer 500 Aligned with FarCom 300 Met Data Miner 300 Friendly Fire -195 Cogmind --------- Core Integrity 0/700 Matter 300/300 Energy 61/100 System Corruption 4% Temperature Cool (0) Movement Core (50) Location -7/Data Miner Parts ------- > --- POWER (2) -------- (None) > --- PROPULSION (4) --- (None) > --- UTILITY (3) ------ Makeshift Hacking Suite > --- WEAPON (4) ------- (None) > --- INVENTORY (5) ---- System Mapper Deep Network Scanner Ghost Barrier Quantum Router Relay Coupler [NC] (34) Peak State ------------ > --- POWER ------------ Reinforced Ion Engine Reinforced Deuterium Engine > --- PROPULSION ------- Light Treads Light Treads Armored Treads Armored Treads > --- UTILITY ---------- Huge Storage Unit Experimental Sensor Array Advanced Shield Generator > --- WEAPON ----------- AWS/Autocannon Power Sword > --- INVENTORY -------- Light Treads Improved Heat Sink High-capacity Storage Unit High-capacity Matter Pod Improved Terrain Scanner Improved Terrain Scan Processor Kinecellerator Improved Shield Generator Relay Coupler [NC] Relay Coupler [Specialist] Relay Coupler [Heavy] Long-range Tractor Beam Army-in-a-Box YOLO Cannon Minigun KE Penetrator Advanced Assault Cannon Gauss Cannon Datajack [Rating: 78] Favorites ----------- Power Reinforced Ion Engine Engine Reinforced Ion Engine Power Core Nuclear Core Propulsion Light Treads Treads Light Treads Leg Aluminum Leg Wheel Wheel Utility Huge Storage Unit Device Kinecellerator Storage Huge Storage Unit Processor Corruption Screen Hackware Hacking Suite Protection Light Armor Plating Weapon Gauss Cannon Energy Gun EM Pulse Gun Energy Cannon EM Pulse Cannon Ballistic Gun Minigun Ballistic Cannon Gauss Cannon Launcher EMP Blaster Slashing Weapon Power Sword Special Melee Weapon Datajack Build | -11 -10 -10 -10 -9 -8 -8 -7 -7 -7 -7 ------- Run | Yrd Mat Min Exi Min Mat Gar Fac Low Low Dat Slots Evolved 6 | . . . . . 4 . 2 . . . Power 1 | . . . . . . . 1 . . . Propulsion 2 | . . . . . 2 . . . . . Utility 1 | . . . . . . . 1 . . . Weapon 2 | . . . . . 2 . . . . . Parts Attached 144 | 6 20 2 2 2 20 23 31 9 17 12 Power 8 | 1 . 1 . . . 1 4 1 . . Engine 7 | 1 . . . . . 1 4 1 . . Core 1 | . . 1 . . . . . . . . Reactor . | . . . . . . . . . . . Propulsion 21 | 2 3 . . 1 6 4 2 1 1 1 Treads 17 | 2 3 . . 1 2 4 2 1 1 1 Leg 2 | . . . . . 2 . . . . . Wheel 2 | . . . . . 2 . . . . . Hover . | . . . . . . . . . . . Flight . | . . . . . . . . . . . Utility 47 | 1 4 1 2 . 2 6 15 4 9 3 Device 33 | . 1 1 . . . 4 15 4 7 1 Storage 7 | 1 2 . 2 . . . . . 1 1 Processor 1 | . . . . . . . . . 1 . Hackware 2 | . . . . . 1 . . . . 1 Protection 4 | . 1 . . . 1 2 . . . . Artifact . | . . . . . . . . . . . Weapon 68 | 2 13 . . 1 12 12 10 3 7 8 Energy Gun 11 | . 6 . . 1 4 . . . . . Energy Cannon 6 | . . . . . 2 2 . . . 2 Ballistic Gun 21 | 2 4 . . . 2 5 3 1 3 1 Ballistic Cannon 13 | . . . . . 4 3 2 . 2 2 Launcher 2 | . . . . . . . . . 1 1 Special Weapon . | . . . . . . . . . . . Impact Weapon . | . . . . . . . . . . . Slashing Weapon 8 | . . . . . . 2 4 1 . 1 Piercing Weapon . | . . . . . . . . . . . Special Melee Weapon 7 | . 3 . . . . . 1 1 1 1 Unidentified Prototypes 1 | . . . . . 1 . . . . . Parts Lost 24 | . 2 . . . . 3 1 . 1 17 Power 3 | . . . . . . . 1 . . 2 Propulsion 6 | . . . . . . 1 . . . 5 Utility 4 | . . . . . . . . . 1 3 Weapon 11 | . 2 . . . . 2 . . . 7 Highest Loss Streak 17 | . 1 . . . . 2 1 . 1 17 To Critical Strikes . | . . . . . . . . . . . Average Slot Usage (%) 92 | . 99 100 100 99 87 98 82 83 87 68 Engine 9 | . 14 4 . . . 5 15 14 15 13 Core 3 | . . 9 14 14 9 3 . . . . Treads 29 | . 27 28 28 28 19 35 29 30 30 26 Device 10 | . 3 11 14 14 3 5 14 15 15 13 Storage 9 | . 14 14 14 14 9 9 7 7 7 7 Protection 1 | . 10 2 . . 5 . . . . . Energy Gun 7 | . 7 28 28 27 15 . . . . . Ballistic Gun 5 | . 19 . . . 9 7 2 2 6 . Ballistic Cannon 8 | . . . . . 2 25 7 7 9 1 Peak Build Rating 78 | 6 8 12 22 23 42 53 75 78 76 61 Average Rating 43 | 5 7 10 17 22 32 41 68 74 64 36 On Entrance 31 | . 6 8 12 22 23 42 38 75 74 49 Naked Turns . | . . . . . . . . . . . Heaviest Build 177 | 14 32 32 92 93 114 123 175 177 176 117 Greatest Support 88 | 40 40 40 40 40 80 80 80 80 88 88 Greatest Overweight (x) 10 | 2 1 . 2 2 10 1 2 2 2 1 Average Overweight (x) 1 | . . . 1 2 2 1 1 2 1 . Largest Inventory Capacity 25 | 8 15 15 25 25 25 25 25 25 25 25 Average Capacity 22 | 7 13 15 21 25 25 25 25 25 23 20 Most Carried 25 | 5 15 15 25 25 25 25 25 25 25 25 Average Carried 21 | 1 11 14 20 25 23 24 24 24 23 19 Final Capacity 25 | 8 15 15 25 25 25 25 25 25 20 5 Final Carried 25 | 5 14 15 25 25 25 25 24 24 20 5 Class Distribution -------------------- 33% | Mutant 24% | Scavenger-Gunner 22% | Skirmisher 18% | Scavenger-Tank Dominant Class ---------------- Mutant | -10/Materials Mutant | -10/Mines Mutant | -10/Exiles Mutant | -9/Mines Skirmisher | -8/Materials Skirmisher | -8/Garrison Scavenger-Tank | -7/Factory Scavenger-Tank | -7/Lower Caves Scavenger-Gunner | -7/Lower Caves Scavenger-Mutant | -7/Data Miner Resources | -11 -10 -10 -10 -9 -8 -8 -7 -7 -7 -7 ----------- Run | Yrd Mat Min Exi Min Mat Gar Fac Low Low Dat Matter Collected 4022 | 296 649 50 . 40 181 1222 809 203 423 149 Remotely 801 | . . . . . . 22 659 . . 120 Salvage Created 4132 | 105 712 121 . 14 194 952 1050 426 438 120 Parts 204 | 7 38 9 . 2 11 46 56 10 17 8 Haulers Intercepted 3 | . 1 . . . . . 2 . . . Recyclers Shooed 2 | . 1 . . . . . 1 . . . Parts Field Recycled . | . . . . . . . . . . . Retrieved Matter . | . . . . . . . . . . . Parts Self-Destructed 32 | . . . . . . . . 16 16 . Prevented 1 | . . . . . . . . . 1 . Kills | -11 -10 -10 -10 -9 -8 -8 -7 -7 -7 -7 ------- Run | Yrd Mat Min Exi Min Mat Gar Fac Low Low Dat Combat Hostiles Destroyed 84 | . 14 2 . 1 3 24 17 10 12 1 Guns 21 | . 13 1 . 1 . 3 1 1 1 . Cannons 54 | . . . . . 2 18 14 9 11 . AOE 4 | . . 1 . . 1 2 . . . . Classes Destroyed 16 | 2 4 . . . 2 4 4 . . . Worker 1 | . . . . . . . 1 . . . Builder 9 | . . . . . . . 9 . . . Tunneler 3 | 2 . 1 . . . . . . . . Hauler 3 | . 1 . . . . . 2 . . . Recycler 3 | 1 1 . . . . . 1 . . . Operator 1 | . . . . . 1 . . . . . Watcher 8 | . 3 . . . . . 5 . . . Swarmer 11 | . 3 . . 1 . . 1 1 5 . Grunt 42 | . 11 2 . . 1 10 9 6 3 . Brawler 5 | . . . . . . 3 1 1 . . Duelist 1 | . . . . . . . 1 . . . Sentry 12 | . . . . . 2 6 . 2 2 . Specialist 1 | . . . . . . 1 . . . . Hunter 5 | . . . . . . 1 2 . 2 . Programmer 6 | . . . . . . 3 2 . 1 . Heavy 1 | . . . . . . . 1 . . . Enhanced Grunt 1 | . . . . . . . . . . 1 Best Kill Streak 13 | 3 3 2 . 1 2 3 13 5 3 1 Combat Bots Only 5 | . 3 2 . 1 1 3 3 5 3 1 Max Kills in Single Turn 2 | 1 1 1 . 1 1 2 2 1 1 1 Gunslinging . | . . . . . . . . . . . Exploded 1 | . . 1 . . 1 1 . . . . Melee . | . . . . . . . . . . . Uniques/NPCs Destroyed 1 | . . . . . . . . . . 1 Data Miner (-7/Data Miner) Combat | -11 -10 -10 -10 -9 -8 -8 -7 -7 -7 -7 -------- Run | Yrd Mat Min Exi Min Mat Gar Fac Low Low Dat Hostile Shots Fired 437 | . 90 5 . . 5 149 37 37 44 70 Missed 125 | . 30 1 . . 2 37 13 7 18 17 Damage Taken 5889 | . 691 59 . . 54 1777 440 340 208 2320 Core 948 | . 81 30 . . . 102 . 41 9 685 Absorbed by Shields 852 | . . . . . . 352 153 133 82 132 Regen/Repaired (Parts) 409 | . . . . . . . 409 . . . Core Remaining (%) 78 | 100 . . . 55 . 81 . . . . Volleys Fired 201 | 6 65 5 . 2 10 82 11 4 8 8 Largest 4 | 2 2 2 . 2 4 4 1 1 4 2 Hottest 178 | 40 80 80 . 85 178 169 33 25 154 100 Shots Fired 530 | 12 128 10 . 4 36 209 51 25 44 11 Gun 250 | 12 128 10 . 4 28 41 11 5 11 . Cannon 278 | . . . . . 8 168 40 20 31 11 Launcher 2 | . . . . . . . . . 2 . Special . | . . . . . . . . . . . Kinetic 444 | 12 93 . . . 10 203 51 25 42 8 Thermal 9 | . . . . . . 6 . . . 3 Explosive . | . . . . . . . . . . . Electromagnetic 77 | . 35 10 . 4 26 . . . 2 . Robot Hit Streak 21 | 3 21 8 . 2 4 8 12 9 7 3 Robot Miss Streak 8 | 2 3 2 . 1 5 4 1 3 8 4 Penetration Max . | . . . . . . . . . . . Secondary Targets 2 | . 1 1 . . . . . . . . Max Gunslinging Chain 1 | . 1 1 . . . . . . . . Autonomous 80 | . . . . . . . 40 20 20 . Shots Hit Robots 335 | 6 95 8 . 3 15 97 57 20 27 7 Core Hits 128 | 4 29 4 . 1 9 31 26 6 9 9 Critical Kills 2 | . . . . . . 1 . . . 1 Critical Parts Destroyed . | . . . . . . . . . . . Critical Strikes 15 | . 1 . . . . 6 2 2 3 1 Meltdown 2 | . . . . . . 1 . . . 1 Blast 12 | . . . . . . 5 2 2 3 . Corrupt 1 | . 1 . . . . . . . . . Melee Attacks 50 | . 3 . . . . 4 29 10 2 2 Impact . | . . . . . . . . . . . Slashing 42 | . . . . . . 4 29 8 . 1 Piercing . | . . . . . . . . . . . Sneak Attacks 21 | . 3 . . . . . 12 2 2 2 Combat Hostiles . | . . . . . . . . . . . Follow-up Attacks . | . . . . . . . . . . . Damage Inflicted 12582 | 68 1306 160 . 37 313 2478 4554 1404 1622 640 Guns 2125 | 68 1306 103 . 37 169 194 143 59 46 . Cannons 8592 | . . . . . 103 1881 3433 1345 1544 286 Explosions 733 | . . 49 . . 41 331 . . 32 280 Melee 1124 | . . . . . . 72 978 . . 74 Ramming 8 | . . 8 . . . . . . . . Kinetic 9570 | 68 933 . . . 98 1769 3576 1404 1590 132 Thermal 1161 | . . 49 . . 41 637 . . . 434 Explosive . | . . . . . . . . . . . Electromagnetic 719 | . 373 103 . 37 174 . . . 32 . Impact . | . . . . . . . . . . . Slashing 1124 | . . . . . . 72 978 . . 74 Piercing . | . . . . . . . . . . . Highest Corruption 4 | . . . . . . 1 4 4 4 4 Average Corruption 3 | . . . . . . 1 4 4 4 4 Corruption Purged . | . . . . . . . . . . . Corruption Blocked . | . . . . . . . . . . . Effects 141 | . . . . . . 7 4 59 64 7 Message Errors 31 | . . . . . . 2 1 9 17 2 Matter Fused 42 | . . . . . . 2 1 19 18 2 Heat Flow Errors 16 | . . . . . . 1 1 7 7 . Energy Discharges 20 | . . . . . . 1 1 11 6 1 Parts Fused 2 | . . . . . . . . . 2 . Data Loss (minor) 14 | . . . . . . 1 . 6 5 2 Data Loss (major) 10 | . . . . . . . . 6 4 . Misfires 4 | . . . . . . . . 1 3 . Alerts 1 | . . . . . . . . . 1 . Weapon Failures 1 | . . . . . . . . . 1 . Overload Shots . | . . . . . . . . . . . Overflow Damage 1564 | . . . . . . 69 843 228 424 . Projectiles 1394 | . . . . . . 22 720 228 424 . Explosions . | . . . . . . . . . . . Melee 170 | . . . . . . 47 123 . . . Knockbacks 40 | . . . . . . 14 16 4 6 . Impact . | . . . . . . . . . . . Kinetic 35 | . . . . . . 14 13 3 5 . Secondary 5 | . . . . . . . 3 1 1 . Self-Inflicted Damage . | . . . . . . . . . . . Shots . | . . . . . . . . . . . Rammed 2 | . . 2 . . . . . . . . Targets Rammed 2 | . . 2 . . . . . . . . Kicked . | . . . . . . . . . . . Crushed . | . . . . . . . . . . . Highest Temperature 322 | . 201 99 . 60 299 322 279 268 281 90 Average Temperature 94 | . 44 40 . 32 117 119 76 98 100 57 Received Heat Transfer 1366 | . 357 33 . . 18 701 64 158 35 . Siege Activations . | . . . . . . . . . . . Robots Corrupted 4 | . 1 . . . . . 3 . . . Combat Hostiles 3 | . 1 . . . . . 2 . . . Parts Fried 6 | . 1 . . . . . 5 . . . Impact Corruptions 3 | . . . . . . . 3 . . . Robots Melted 2 | . . . . . . 1 . . . 1 Combat Hostiles 2 | . . . . . . 1 . . . 1 Parts Melted 3 | . . . . . . 1 . . . 2 Heat Transferred 1380 | . . 50 . . 50 640 . . . 640 Parts Sabotaged . | . . . . . . . . . . . Parts Stolen 4 | . . . . . . . . . 4 . Parts Stripped . | . . . . . . . . . . . Power Chain Reactions 2 | . . 1 . . 1 . . . . . Alert | -11 -10 -10 -10 -9 -8 -8 -7 -7 -7 -7 ------- Run | Yrd Mat Min Exi Min Mat Gar Fac Low Low Dat Peak Influence 1717 | 15 195 134 . 104 226 1717 1044 . . . Initial 900 | . 9 75 . . . 51 900 . . . Average 367 | 6 79 44 . 23 87 766 844 . . . Maximum Alert Level 5 | . . . . . 1 5 3 . . . Low Security (%) 62 | 100 100 100 . 100 94 16 . . . . Level 1 5 | . . . . . 5 18 . . . . Level 2 5 | . . . . . . 9 22 . . . Level 3 16 | . . . . . . 22 77 . . . Level 4 8 | . . . . . . 28 . . . . Level 5 1 | . . . . . . 4 . . . . High Security . | . . . . . . . . . . . Max Security . | . . . . . . . . . . . Squads Dispatched 13 | . 2 1 . . 2 . 8 . . . Investigation 6 | . 2 1 . . 1 . 2 . . . Extermination 2 | . . . . . . . 2 . . . Reinforcement 2 | . . . . . . . 2 . . . Assault 2 | . . . . . . . 2 . . . Garrison 1 | . . . . . 1 . . . . . Intercept . | . . . . . . . . . . . Searches Triggered . | . . . . . . . . . . . Construction Impeded . | . . . . . . . . . . . Haulers Reinforced . | . . . . . . . . . . . Active Scanning Responses . | . . . . . . . . . . . Cargo Convoy Interrupts . | . . . . . . . . . . . Stealth | -11 -10 -10 -10 -9 -8 -8 -7 -7 -7 -7 --------- Run | Yrd Mat Min Exi Min Mat Gar Fac Low Low Dat Distress Signals 2 | . 1 . . . . . 1 . . . Communications Jammed . | . . . . . . . . . . . Distress Signals . | . . . . . . . . . . . Times Spotted 116 | . 22 2 . 4 13 20 24 13 14 4 Peak Tracking Total 6 | . 5 2 . 4 3 3 6 6 4 4 Tactical Retreats 4 | . 2 . . . 1 . 1 . . . Traps | -11 -10 -10 -10 -9 -8 -8 -7 -7 -7 -7 ------- Run | Yrd Mat Min Exi Min Mat Gar Fac Low Low Dat Traps Triggered 12 | . 2 . . . 1 8 1 . . . Indirectly . | . . . . . . . . . . . Trap Hack Attempts 17 | . 17 . . . . . . . . . Triggered . | . . . . . . . . . . . Disarmed . | . . . . . . . . . . . Reprogrammed 4 | . 4 . . . . . . . . . Reused 1 | . 1 . . . . . . . . . Traps Extracted . | . . . . . . . . . . . Installed . | . . . . . . . . . . . Triggered 1 | . 1 . . . . . . . . . Machines | -11 -10 -10 -10 -9 -8 -8 -7 -7 -7 -7 ---------- Run | Yrd Mat Min Exi Min Mat Gar Fac Low Low Dat Machines Disabled 11 | . . . . . 1 9 . 1 . . Max in Single Turn 1 | . . . . . 1 1 . 1 . . Garrison Relay 5 | . . . . . . 5 . . . . Machines Repaired . | . . . . . . . . . . . Machines Dismantled . | . . . . . . . . . . . Machines Sabotaged . | . . . . . . . . . . . Overloaded Fab Kills . | . . . . . . . . . . . Hacking | -11 -10 -10 -10 -9 -8 -8 -7 -7 -7 -7 --------- Run | Yrd Mat Min Exi Min Mat Gar Fac Low Low Dat Machines Accessed 32 | . 10 1 2 . 5 3 5 1 1 4 Terminals 18 | . 8 . . . 3 3 4 . . . Fabricators 1 | . . . . . . . 1 . . . Repair Stations . | . . . . . . . . . . . Recycling Units 2 | . 2 . . . . . . . . . Scanalyzers 1 | . . . . . 1 . . . . . Garrison Access 1 | . . . . . 1 . . . . . Total Hacks 118 | . 29 1 24 . 17 3 16 1 1 26 Successful 87 | . 18 1 24 . 7 2 7 1 1 26 Failed 31 | . 11 . . . 10 1 9 . . . Catastrophic 5 | . . . . . 3 1 1 . . . Database Lockouts . | . . . . . . . . . . . Manual 46 | . 26 . 1 . 7 . 12 . . . Terminals 52 | . 27 . . . 8 3 14 . . . Fabricators 2 | . . . . . . . 2 . . . Repair Stations . | . . . . . . . . . . . Recycling Units 2 | . 2 . . . . . . . . . Scanalyzers 7 | . . . . . 7 . . . . . Garrison Access 2 | . . . . . 2 . . . . . Terminal Hacks 68 | . 8 1 24 . . 2 5 1 1 26 Record 34 | . . . 23 . . . . . . 11 Part Schematic 8 | . . . . . . . . . . 8 Robot Schematic 5 | . 1 . . . . . . . . 4 Robot Analysis 3 | . 3 . . . . . . . . . Prototype ID Bank 5 | . 1 . . . . . 1 . . 3 Open Door 3 | . . 1 . . . . . 1 1 . Branch Access Points 1 | . . . . . . . 1 . . . Emergency Access Points 1 | . . . . . . 1 . . . . Unreport Threat 2 | . . . . . . . 2 . . . Locate Traps 2 | . 2 . . . . . . . . . Zone Layout 2 | . 1 . . . . . 1 . . . Garrison Registry 1 | . . . . . . 1 . . . . Derelict Proto ID Bank 1 | . . . 1 . . . . . . . Fabricator Hacks 2 | . . . . . . . 2 . . . Load Schematic 1 | . . . . . . . 1 . . . Build 1 | . . . . . . . 1 . . . Repair Station Hacks . | . . . . . . . . . . . Recycling Unit Hacks . | . . . . . . . . . . . Scanalyzer 4 | . . . . . 4 . . . . . Insert Component 2 | . . . . . 2 . . . . . Analyze 2 | . . . . . 2 . . . . . Garrison Access Hacks 1 | . . . . . 1 . . . . . Unlock Access 1 | . . . . . 1 . . . . . Unauthorized Hacks 12 | . 10 . . . 2 . . . . . Terminals 10 | . 8 . . . 2 . . . . . Track 1 | . 1 . . . . . . . . . Assimilate 1 | . . . . . 1 . . . . . Botnet 2 | . 2 . . . . . . . . . Skim 6 | . 5 . . . 1 . . . . . Fabricators . | . . . . . . . . . . . Repair Stations . | . . . . . . . . . . . Recycling Units 2 | . 2 . . . . . . . . . Tunnel 2 | . 2 . . . . . . . . . Scanalyzers . | . . . . . . . . . . . Garrison Access . | . . . . . . . . . . . Data Cores Recovered 2 | . . . . . 2 . . . . . Used . | . . . . . . . . . . . Hacking Detections 19 | . 8 . . . 5 1 5 . . . Full Trace Events 3 | . . . . . 1 . 2 . . . Feedback Events . | . . . . . . . . . . . Feedback Blocked . | . . . . . . . . . . . Robot Schematics Acquired 5 | . 1 . . . . . . . . 4 Robots Built 1 | . . . . . . . 1 . . . Authchips . | . . . . . . . . . . . Time 81 | . . . . . . . 81 . . . Total Robot Build Rating 1 | . . . . . . . 1 . . . Part Schematics Acquired 8 | . . . . . . . . . . 8 Parts Built . | . . . . . . . . . . . Authchips . | . . . . . . . . . . . Time . | . . . . . . . . . . . Total Part Build Rating . | . . . . . . . . . . . Parts Repaired . | . . . . . . . . . . . Time . | . . . . . . . . . . . Parts Recycled . | . . . . . . . . . . . Recycled Matter . | . . . . . . . . . . . Retrieved Matter . | . . . . . . . . . . . Retrieved Components . | . . . . . . . . . . . Parts Scanalyzed 1 | . . . . . 1 . . . . . Part Schematics Acquired . | . . . . . . . . . . . Parts Damaged . | . . . . . . . . . . . Bothacking | -11 -10 -10 -10 -9 -8 -8 -7 -7 -7 -7 ------------ Run | Yrd Mat Min Exi Min Mat Gar Fac Low Low Dat Used RIF Installer 1 | . . . . . . 1 . . . . Robots Hacked 3 | . 2 . . . . . . . . 1 Non-combat 2 | . 2 . . . . . . . . . Combat 1 | . . . . . . . . . . 1 Robot Hacks Applied 4 | . 3 . . . . . . . . 1 parse_system 1 | . . . . . . . . . . 1 no_distress 2 | . 2 . . . . . . . . . find_station 1 | . 1 . . . . . . . . . Relay Couplers Released 24 | . . . . . . 24 . . . . Machine Destruction 24 | . . . . . . 24 . . . . Fabnet Peak Effective % . | . . . . . . . . . . . Robots Rewired 3 | . . . . . . . . 2 1 . Allies Hacked . | . . . . . . . . . . . Hacks Repelled . | . . . . . . . . . . . Allies | -11 -10 -10 -10 -9 -8 -8 -7 -7 -7 -7 -------- Run | Yrd Mat Min Exi Min Mat Gar Fac Low Low Dat Total Allies 8 | . . 3 . 1 . . 1 2 1 . Largest Group 4 | . . 3 3 4 4 . 1 2 2 1 Highest-Rated Group 71 | . . 40 40 71 71 . 14 48 48 32 Highest-Rated Ally 32 | . . 16 16 31 31 . 14 32 32 32 Total Orders 2 | . . . . . . . 1 . . 1 STAY 1 | . . . . . . . . . . 1 AID 1 | . . . . . . . 1 . . . Ally Attacks 73 | . . . . 6 58 . . . 8 1 Total Damage 796 | . . . . 92 494 . . . 204 6 Kills 15 | . . . . 3 11 . . . 1 . Allies Corrupted . | . . . . . . . . . . . Allies Melted . | . . . . . . . . . . . Intel | -11 -10 -10 -10 -9 -8 -8 -7 -7 -7 -7 ------- Run | Yrd Mat Min Exi Min Mat Gar Fac Low Low Dat Robot Analysis Total 3 | . 3 . . . . . . . . . Derelict Logs Recovered 6 | . . 3 . 1 . . . 1 1 . Drone Launches . | . . . . . . . . . . . Drone Recoveries . | . . . . . . . . . . . Exploration | -11 -10 -10 -10 -9 -8 -8 -7 -7 -7 -7 ------------- Run | Yrd Mat Min Exi Min Mat Gar Fac Low Low Dat Turns Passed 15968 | 123 1883 1137 759 1349 890 2712 1231 2618 2947 319 Spaces Moved 5926 | 58 957 623 299 411 289 939 330 789 1081 150 Core 12 | 4 . . . . . . . . . 8 Treads 5815 | 54 957 623 299 411 190 939 330 789 1081 142 Legs . | . . . . . . . . . . . Wheels 99 | . . . . . 99 . . . . . Hover . | . . . . . . . . . . . Flight . | . . . . . . . . . . . Fastest Speed 50 | 50 160 160 160 320 140 242 243 325 245 50 Average Speed 243 | 155 160 160 252 320 256 242 313 325 265 169 Slowest Speed 325 | 160 240 160 320 320 320 243 325 325 325 245 Overloaded Moves . | . . . . . . . . . . . Propulsion Burnouts . | . . . . . . . . . . . Robots Hopped . | . . . . . . . . . . . Cave-ins Triggered 1 | . . . . . . . 1 . . . Exploration Rate (%) 66 | 5 99 96 70 77 22 78 12 93 97 79 Regions Visited 10 Branch Regions 6 Pre-discovered Areas 5 | . 2 . 1 . . . . 1 . 1 Known Exits Taken 3 | . . 1 . . 1 . 1 . . . Unknown Exits Taken 6 | 1 1 . 1 1 . . . 1 1 . Scrap Searched 9 | . . 1 . 1 . . . 3 4 . Spaces Dug 30 | . . . . . . 6 17 7 . . Terrain Destroyed 115 | . . 4 . . 1 56 20 11 12 11 Melee 25 | . . . . . . 1 17 7 . . Projectile 33 | . . . . . . 13 3 4 12 1 AOE 57 | . . 4 . . 1 42 . . . 10 Terrain Rammed . | . . . . . . . . . . . Walls Destroyed . | . . . . . . . . . . . Machines Disabled . | . . . . . . . . . . . Actions | -11 -10 -10 -10 -9 -8 -8 -7 -7 -7 -7 --------- Run | Yrd Mat Min Exi Min Mat Gar Fac Low Low Dat Total 7030 | 76 1173 755 307 443 415 1225 469 825 1141 201 Wait 507 | 2 84 112 . 27 69 126 52 11 19 5 Move 5917 | 57 956 622 298 410 289 938 329 788 1080 150 Hop . | . . . . . . . . . . . Pick Up 82 | 5 19 6 4 . 9 16 7 1 7 8 Fast Attach 43 | 6 4 . . 1 15 6 3 1 4 3 Attach 25 | . 3 . . . 1 3 6 . 4 8 Detach 7 | . . . . . . 2 4 . . 1 Swap 76 | . 13 2 2 1 4 14 22 8 9 1 Drop 93 | . 9 6 3 2 18 24 6 2 8 15 Fire 201 | 6 65 5 . 2 10 82 11 4 8 8 Melee 50 | . 3 . . . . 4 29 10 2 2 Ram . | . . . . . . . . . . . Kick . | . . . . . . . . . . . Crush 2 | . . 2 . . . . . . . . Escape Stasis 10 | . . . . . . 10 . . . . Rewire . | . . . . . . . . . . . Trap 17 | . 17 . . . . . . . . . Miscellaneous . | . . . . . . . . . . . Route ------- -11/Scrapyard -10/Materials (discovered 6 exits: *Mat x3 / *Min x2 / *Sub) -10/Mines (discovered 4 exits: *Mat x2 / *Exi / Sub) -10/Exiles -9/Mines (discovered 2 exits: *Mat x2) -8/Materials (discovered 2 exits: *Fac / Gar) -8/Garrison (discovered 3 exits: *Fac x3) -7/Factory (discovered 4 exits: Sto x2 / *Low x2) -7/Lower Caves -7/Lower Caves (discovered 2 exits: [*Fac] / *Dat) -7/Data Miner (discovered 1 exit: [*Pro]) History --------- Turn | Location | Event 18 | -11/Scrapyard | Discovered new exit (range 16) 124 | -11/Scrapyard | Entered Materials 305 | -10/Materials | Build established: Mutant 642 | -10/Materials | Discovered new exit (range 9) 902 | -10/Materials | Discovered new exit (range 3) 1024 | -10/Materials | Discovered new exit (range 10) 1106 | -10/Materials | Discovered new exit (range 10) 1161 | -10/Materials | Identified exit to Materials 1226 | -10/Materials | Learned Storage emergency access door positions 1281 | -10/Materials | Learned location of 2 exits from Mines 1326 | -10/Materials | Learned Storage emergency access door positions 1407 | -10/Materials | Identified exit to Subcaves 2007 | -10/Materials | Entered Mines 2009 | -10/Mines | Identified exit to Exiles 2045 | -10/Mines | Learned Materials non-interactive machine intel 2069 | -10/Mines | Learned 4 Materials zone layouts 2085 | -10/Mines | Deemed a non-threat by the Exiles lab entrance 2135 | -10/Mines | Found a damaged Exp. Sensor Array with a note attached 2139 | -10/Mines | Found Prototype Device 2338 | -10/Mines | A weapon hastily lodged in a ceiling crevice suddenly fell to the ground 2372 | -10/Mines | Discovered exit to Materials (range 8) 2404 | -10/Mines | Met a Derelict shopkeep closing up shop 2592 | -10/Mines | Assisted by bots powering up and referring to "LRC-V3" 2632 | -10/Mines | Found a hidden stash of uninstalled traps 2731 | -10/Mines | Learned Materials terminal intel 3144 | -10/Mines | Entered Exiles 3144 | -10/Exiles | Accompanied by 3 allies 3184 | -10/Exiles | Met 8R-AWN 3210 | -10/Exiles | Met EX-HEX 3313 | -10/Exiles | Met EX-DEC 3357 | -10/Exiles | Learned location of Zion (-6) 3400 | -10/Exiles | Met EX-BIN 3433 | -10/Exiles | Aligned with FarCom system 3436 | -10/Exiles | Given EX-Vault access code 3491 | -10/Exiles | Opened EX-Vault 3505 | -10/Exiles | Found Army-in-a-Box 3509 | -10/Exiles | Found AWS/Autocannon 3531 | -10/Exiles | Found YOLO Cannon 3596 | -10/Exiles | Warned to stay clear of 0b10 Research branches 3864 | -10/Exiles | Discovered new exit (range 14) 3903 | -10/Exiles | Stole three prototypes: Army-in-a-Box, YOLO Cannon, AWS/Autocannon 3903 | -10/Exiles | Entered Mines 3903 | -9/Mines | Accompanied by 3 allies 4011 | -9/Mines | Discovered new exit (range 14) 4150 | -9/Mines | Learned Materials stockpile data 4815 | -9/Mines | Discovered new exit (range 7) 5032 | -9/Mines | Received a Mining Laser from a helpful Derelict 5252 | -9/Mines | Entered Materials 5252 | -8/Materials | Accompanied by 4 allies 5252 | -8/Materials | Evolved 4 slots: Propulsion x2, Weapon x2 5255 | -8/Materials | Loaded intel: 32 non-interactive machine locations 5256 | -8/Materials | Loaded intel: 12 terminal locations 5573 | -8/Materials | Build established: Skirmisher 5662 | -8/Materials | Identified Exp. Sensor Array 5986 | -8/Materials | Garrison activated, responded to threat 6126 | -8/Materials | Discovered new exit (range 16) 6142 | -8/Materials | Identified exit to Garrison 6142 | -8/Materials | Entered Garrison 6308 | -8/Garrison | Triggered checkpoint 6416 | -8/Garrison | Garrison Relay disabled 6586 | -8/Garrison | Triggered checkpoint 6597 | -8/Garrison | Triggered checkpoint 6657 | -8/Garrison | Triggered checkpoint 6774 | -8/Garrison | Discovered new exit (range 10) 6864 | -8/Garrison | Triggered checkpoint 6963 | -8/Garrison | Garrison Relay disabled 7091 | -8/Garrison | Triggered checkpoint 7189 | -8/Garrison | Garrison Relay disabled 7372 | -8/Garrison | Discovered new exit (range 13) 7591 | -8/Garrison | Triggered checkpoint 7706 | -8/Garrison | Garrison Relay disabled 7736 | -8/Garrison | Garrison Relay disabled 8425 | -8/Garrison | Installed Relay Interface Framework 8502 | -8/Garrison | Discovered new exit (range 82) 8502 | -8/Garrison | Discovered new exit (range 7) 8502 | -8/Garrison | Discovered new exit (range 72) 8724 | -8/Garrison | Spotted B-75 Beast 8854 | -8/Garrison | Entered Factory 8854 | -7/Factory | Evolved 2 slots: Power x1, Utility x1 8855 | -7/Factory | Identified exit to Storage 8856 | -7/Factory | FarCom data flow suspended 9036 | -7/Factory | Fabricated M-13 Machinist (x1) 9163 | -7/Factory | Identified exit to Lower Caves 9638 | -7/Factory | Build established: Scavenger-Gunner 9855 | -7/Factory | Crushed by falling debris 10011 | -7/Factory | Build established: Scavenger-Tank 10054 | -7/Factory | First assault squad dispatched 10085 | -7/Factory | Entered Lower Caves 10085 | -7/Lower Caves | Spotted QJ-4WA(f) 10087 | -7/Lower Caves | Encountered a Master Thief 10241 | -7/Lower Caves | Attracted the attention of an 0b10 checkpoint 10412 | -7/Lower Caves | Build established: Scavenger-Gunner 10931 | -7/Lower Caves | Build established: Scavenger-Tank 11910 | -7/Lower Caves | Build established: Scavenger-Gunner 12251 | -7/Lower Caves | Discovered new exit (range 9) 12319 | -7/Lower Caves | Build established: Scavenger-Tank 12703 | -7/Lower Caves | Entered another Lower Caves area 12703 | -7/Lower Caves | Accompanied by 2 allies 12876 | -7/Lower Caves | Discovered new exit (range 10) 13075 | -7/Lower Caves | Build established: Scavenger-Gunner 14084 | -7/Lower Caves | Build established: Scavenger-Tank 14088 | -7/Lower Caves | Encountered a Warlord checkpoint 14614 | -7/Lower Caves | Build established: Scavenger-Gunner 14734 | -7/Lower Caves | Spotted T7-BQN(f) 14735 | -7/Lower Caves | Encountered a Master Thief 14736 | -7/Lower Caves | Spotted WD-I84(f) 14737 | -7/Lower Caves | Encountered a Master Thief 14737 | -7/Lower Caves | AWS/Autocannon stolen by Master Thief 14738 | -7/Lower Caves | Spotted 8K-B1L(f) 14738 | -7/Lower Caves | Spotted B2-ZR5(f) 14739 | -7/Lower Caves | Encountered a Master Thief 14739 | -7/Lower Caves | Encountered a Master Thief 14739 | -7/Lower Caves | Exp. Sensor Array stolen by Master Thief 14739 | -7/Lower Caves | Relay Coupler [Heavy] stolen by Master Thief 14751 | -7/Lower Caves | KE Penetrator stolen by Master Thief 14875 | -7/Lower Caves | Discovered new exit (range 7) 15209 | -7/Lower Caves | Attracted the attention of an 0b10 checkpoint 15650 | -7/Lower Caves | Entered Data Miner 15650 | -7/Data Miner | Accompanied by 1 ally 15650 | -7/Data Miner | Discovered new exit (range 6) 15693 | -7/Data Miner | Met Data Miner 15726 | -7/Data Miner | Learned location of Section 7 (-2) 15726 | -7/Data Miner | Acquired the access code to Warlord's prototype stash 15754 | -7/Data Miner | Received God Mode back door access code from Data Miner 15900 | -7/Data Miner | Destroyed Data Miner 15910 | -7/Data Miner | Found Deep Network Scanner 15915 | -7/Data Miner | Found System Mapper 15920 | -7/Data Miner | Found Quantum Router 15923 | -7/Data Miner | Found Ghost Barrier 15924 | -7/Data Miner | Data Conduit disabled 15951 | -7/Data Miner | Core integrity fell below 50% 15963 | -7/Data Miner | Core integrity fell below 20% 15969 | -7/Data Miner | Destroyed by Enhanced Grunt with Neutron Cannon Last Messages --------------- 15943_ Minigun destroyed. 15945_ EMP Blaster destroyed. 15953_ Adv. Assault Cannon destroyed. 15956_ #TU9XG#OLZLC,8W:TJQD0QGPDX0DYATNVKL8 15957_ Slug penetrates Enhanced Grunt. 15958_ Gauss Cannon destroyed. 15960_ Acquired 58 matter. 15960_ Acquired 4 matter. 15960_ Acquired 48 matter. 15960_ Identified Mak. Hacking Suite. 15961_ Acquired 10 matter. 15961_ Dropped Army-in-a-Box. 15961_ Dropped Imp. Heat Sink. 15961_ Lrn. Tractor Beam destroyed. 15962_ Dropped Hcp. Storage Unit. 15962_ Dropped Hcp. Matter Pod. 15963_ Dropped Imp. Terrain Scanner. 15963_ Dropped Imp. Terrain Scan Processor. 15964_ Dropped Relay Coupler [Specialist]. 15964_ Dropped Huge Storage Unit. Map ----- +----------------------------------------------------+ | | | | | | | | | | | | | | | | | | | | | | | | | ?????????????????????????????????????????? | | ?????????????????????????????????????????? | | ?????????????????????????????????????????? | | ?????????????????????????????????????????? | | ???????????????????????????#?????????####? | | ????######################;###?????### #? | | ???##"""""""""""""" ;;;;;; ; # ???## #? | | ???#"""""""" " ; ; ; #### < ##? | | ???"""""""" ## | | ??#"""" ! g ] | | ???""" !!! % | | ???""""""!= | | ???"""""!!* gg | | ???""""""! @ """"""""""""""""## | | ???"""""" ""###############? | | ????"""""" """""###??????????????? | | ????#"""""""" "#####????????????????? | | ?????#######"#; "#????????????????????? | | ???????????#"### "#????????????????????? | | ???????????#"### "#????????????????????? | | ???????????#"## "#????????????????????? | | ???????????#"## "#????????????????????? | | ?????????????# "#????????????????????? | | ?????????????### "#????????????????????? | | ???????????????# "##???????????????????? | | ??????????????## ""#???????????????????? | | ???????????#?## ""#???????????????????? | | ?????????"##"#"X ""#???????????????????? | | ?????????"""""" "####????????????????? | | ?????????#""""" X"""""????????????????? | | ?????????###"#"X "##"#????????????????? | | ???????????#?## X""""#????????????????? | | ??????????????## "##"#????????????????? | | ???????????????#######???????????????????? | | ?????????????????????????????????????????? | | ?????????????????????????????????????????? | | ?????????????????????????????????????????? | | ?????????????????????????????????????????? | +----------------------------------------------------+ Best States ------------- Heat Dissipation 48 Energy Generation 23 Energy Capacity 455 Matter Stores 300 Matter Capacity 300 Sight Range 16 Robot Scan Range 20 Terrain Scan Density 10 Armor Coverage 150 Evasion (%) 40 Recoil Reduction 4 Kinecelleration 30 Offensive Hacking 10 Item Schematics ----------------- Combat Drone Bay | -7/Data Miner | Free Lgt. Regenerative Plating | -7/Data Miner | Free Thermal Defense Suite | -7/Data Miner | Free Biomechanical Wings | -7/Data Miner | Free Imp. Lightning Gun | -7/Data Miner | Free Cmb. Gravmag System | -7/Data Miner | Free Recoil Nullifier | -7/Data Miner | Free Imp. Arc Projector | -7/Data Miner | Free Robot Schematics ------------------ M-13 Machinist | -10/Materials | Hacked Y-54 Guardian | -7/Data Miner | Free E-15 Imp | -7/Data Miner | Free L-41 Fighter | -7/Data Miner | Free M-14 Sweeper | -7/Data Miner | Free Fabricated ------------ M-13 Machinist | x1 | -7/Factory Alien Tech Used ----------------- None Achievements -------------- None Challenges ------------ None Game ------ Seed GravmagRegenerativeMultitool Manual? 0 Play Time 01:32:32 Cumulative 92.0 hours Start 2024.09.16 @ 09:20:28 End 2024.09.16 @ 10:55:15 Sessions 1 Manual Loads 0 Difficulty Rogue Special Mode None Game No. 51 Rogue 51 Adventurer 0 Explorer 0 Win Type - Total 0 Types 0/0/0/0/0/0/0/0/0 Lore% 45 Gallery% 61 Achievement% 51 Wizard Run 0 Options --------- Layout 0 ASCII 0 Keyboard 0 Movement Mouse Keybinds 0 Fullscreen 1 Font 24/Smallcaps Map View 183x50 Zoom Use 0% Tactical HUD 1 Map Filters NONE Filters NONE Steam 0 RUN: 7a7118b5-1a66-4059-94d7-97fd8254245f